fUST/lending_fUST_20241203
["ID","MTS","AMOUNT","RATE_DAILY","PERIOD"]
[344002701,1733175033817,-281.0180957,0.00019714,11]
[344002702,1733175033827,-516.58117383,0.00019973,2]
[344002703,1733175033839,-500.0,0.00019973,2]
[344002704,1733175033849,-260.31507083,0.00019973,2]
[344002705,1733175033859,-250.0,0.00019973,2]
[344002706,1733175033870,-260.58596398,0.00019973,2]
[344002707,1733175033880,-513.63592441,0.00019973,2]
[344002708,1733175033890,-500.30240615,0.00019973,2]
[344002709,1733175033901,-282.09399042,0.00019973,2]
[344002710,1733175033911,-500.0,0.00019973,2]
[344002711,1733175033922,-200.36868126,0.00019973,2]
[344002713,1733175033932,-501.6241701,0.00019973,2]
[344002715,1733175033943,-506.95754395,0.00019973,2]
[344002717,1733175033953,-159.25060079,0.00019973,2]
[344002718,1733175033964,-500.0,0.00019973,2]
[344002721,1733175033974,-500.0,0.00019973,2]
[344002723,1733175033985,-334.0397932,0.00019973,2]
[344002725,1733175033995,-345.10144811,0.00019973,2]
[344002727,1733175034005,-171.86360082,0.00019973,2]
[344002729,1733175034015,-374.69376712,0.00019973,2]
[344002731,1733175034025,-168.23440248,0.00019998,2]
[344002733,1733175034035,-500.0,0.00019998,2]
[344002735,1733175034045,-500.0,0.00019998,2]
[344002736,1733175034055,-219.00178224,0.00019998,2]
[344002737,1733175034065,-162.17321865,0.00019998,2]
[344002738,1733175034075,-500.0,0.00019998,2]
[344002739,1733175034089,-500.0,0.00019998,2]
[344002740,1733175034101,-500.0,0.00019998,2]
[344002741,1733175034112,-500.0,0.00019998,2]
[344002742,1733175034122,-286.34530285,0.00019998,2]
[344002743,1733175034132,-500.0,0.00019998,2]
[344002744,1733175034142,-500.0,0.00019998,2]
[344002745,1733175034152,-500.0,0.00019998,2]
[344002746,1733175034162,-500.0,0.00019998,2]
[344002747,1733175034172,-500.0,0.00019998,2]
[344002748,1733175034182,-500.0,0.00019998,2]
[344002749,1733175034191,-500.0,0.00019998,2]
[344002750,1733175034200,-500.0,0.00019998,2]
[344002751,1733175034211,-500.0,0.00019998,2]
[344002752,1733175034223,-500.0,0.00019998,2]
[344002753,1733175034233,-500.0,0.00019998,2]
[344002754,1733175034242,-500.0,0.00019998,2]
[344002755,1733175034252,-500.0,0.00019998,2]
[344002756,1733175034263,-500.0,0.00019998,2]
[344002757,1733175034272,-500.0,0.00019998,2]
[344002758,1733175034282,-500.0,0.00019998,2]
[344002759,1733175034293,-500.0,0.00019998,2]
[344002760,1733175034303,-500.0,0.00019998,2]
[344002761,1733175034312,-500.0,0.00019998,2]
[344002762,1733175034323,-500.0,0.00019998,2]
[344002763,1733175034335,-500.0,0.00019998,2]
[344002764,1733175034344,-500.0,0.00019998,2]
[344002765,1733175034354,-500.0,0.00019998,2]
[344002766,1733175034363,-500.0,0.00019998,2]
[344002767,1733175034373,-500.0,0.00019998,2]
[344002768,1733175034383,-500.0,0.00019998,2]
[344002769,1733175034392,-500.0,0.00019998,2]
[344002770,1733175034401,-500.0,0.00019998,2]
[344002771,1733175034411,-500.0,0.00019998,2]
[344002772,1733175034420,-500.0,0.00019998,2]
[344002773,1733175034430,-500.0,0.00019998,2]
[344002774,1733175034440,-500.0,0.00019998,2]
[344002775,1733175034449,-500.0,0.00019998,2]
[344002776,1733175034459,-500.0,0.00019998,2]
[344002777,1733175034469,-500.0,0.00019998,2]
[344002778,1733175034478,-500.0,0.00019998,2]
[344002779,1733175034487,-500.0,0.00019998,2]
[344002780,1733175034497,-500.0,0.00019998,2]
[344002781,1733175034506,-500.0,0.00019998,2]
[344002782,1733175034516,-500.0,0.00019998,2]
[344002783,1733175034525,-500.0,0.00019998,2]
[344002784,1733175034535,-500.0,0.00019998,2]
[344002785,1733175034544,-184.6146103,0.00019998,2]
[344002786,1733175034554,-500.0,0.00019998,2]
[344002787,1733175034563,-500.0,0.00019998,2]
[344002788,1733175034573,-500.0,0.00019998,2]
[344002789,1733175034584,-500.0,0.00019998,2]
[344002790,1733175034594,-500.0,0.00019998,2]
[344002791,1733175034604,-500.0,0.00019998,2]
[344002792,1733175034614,-500.0,0.00019998,2]
[344002793,1733175034624,-500.0,0.00019998,2]
[344002794,1733175034634,-500.0,0.00019998,2]
[344002795,1733175034644,-500.0,0.00019998,2]
[344002796,1733175034654,-500.0,0.00019998,2]
[344002797,1733175034664,-500.0,0.00019998,2]
[344002798,1733175034674,-500.0,0.00019998,2]
[344002799,1733175034683,-500.0,0.00019998,2]
[344002800,1733175034693,-500.0,0.00019998,2]
[344002801,1733175034702,-500.0,0.00019998,2]
[344002802,1733175034712,-500.0,0.00019998,2]
[344002803,1733175034723,-500.0,0.00019998,2]
[344002804,1733175034732,-500.0,0.00019998,2]
[344002805,1733175034742,-500.0,0.00019998,2]
[344002806,1733175034752,-500.0,0.00019998,2]
[344002807,1733175034761,-500.0,0.00019998,2]
[344002808,1733175034771,-500.0,0.00019998,2]
[344002809,1733175034780,-500.0,0.00019998,2]
[344002810,1733175034791,-500.0,0.00019998,2]
[344002811,1733175034801,-231.91403091,0.00019998,2]
[344002812,1733175034810,-500.0,0.00019998,2]
[344002813,1733175034820,-500.0,0.00019998,2]
[344002814,1733175034831,-500.0,0.00019998,2]
[344002815,1733175034841,-500.0,0.00019998,2]
[344002816,1733175034850,-500.0,0.00019998,2]
[344002817,1733175034860,-500.0,0.00019998,2]
[344002818,1733175034870,-500.0,0.00019998,2]
[344002819,1733175034879,-500.0,0.00019998,2]
[344002820,1733175034889,-500.0,0.00019998,2]
[344002821,1733175034899,-500.0,0.00019998,2]
[344002822,1733175034909,-500.0,0.00019998,2]
[344002823,1733175034919,-500.0,0.00019998,2]
[344002824,1733175034929,-500.0,0.00019998,2]
[344002825,1733175034939,-500.0,0.00019998,2]
[344002826,1733175034949,-500.0,0.00019998,2]
[344002827,1733175034959,-500.0,0.00019998,2]
[344002828,1733175034969,-500.0,0.00019998,2]
[344002829,1733175034978,-500.0,0.00019998,2]
[344002830,1733175034988,-500.0,0.00019998,2]
[344002831,1733175034998,-500.0,0.00019998,2]
[344002832,1733175035008,-500.0,0.00019998,2]
[344002833,1733175035018,-500.0,0.00019998,2]
[344002834,1733175035112,-500.0,0.00019998,2]
[344002835,1733175035122,-500.0,0.00019998,2]
[344002836,1733175035131,-500.0,0.00019998,2]
[344002837,1733175035140,-500.0,0.00019998,2]
[344002838,1733175035150,-500.0,0.00019998,2]
[344002839,1733175035159,-500.0,0.00019998,2]
[344002840,1733175035169,-500.0,0.00019998,2]
[344002841,1733175035179,-500.0,0.00019998,2]
[344002842,1733175035188,-500.0,0.00019998,2]
[344002843,1733175035197,-500.0,0.00019998,2]
[344002844,1733175035207,-500.0,0.00019998,2]
[344002845,1733175035217,-500.0,0.00019998,2]
[344002846,1733175035230,-500.0,0.00019998,2]
[344002847,1733175035239,-500.0,0.00019998,2]
[344002848,1733175035249,-500.0,0.00019998,2]
[344002849,1733175035259,-500.0,0.00019998,2]
[344002850,1733175035268,-500.0,0.00019998,2]
[344002851,1733175035277,-500.0,0.00019998,2]
[344002852,1733175035287,-500.0,0.00019998,2]
[344002853,1733175035296,-466.82655266,0.00019998,2]
[344002854,1733175035308,-500.0,0.00019998,2]
[344002855,1733175035318,-500.0,0.00019998,2]
[344002856,1733175035328,-500.0,0.00019998,2]
[344002857,1733175035342,-500.0,0.00019998,2]
[344002858,1733175035351,-500.0,0.00019998,2]
[344002859,1733175035361,-500.0,0.00019998,2]
[344002860,1733175035370,-500.0,0.00019998,2]
[344002861,1733175035378,-500.0,0.00019998,2]
[344002862,1733175035388,-211.10693954,0.00019998,2]
[344002863,1733175035403,-288.89306046,0.00019998,2]
[344002864,1733175035412,-500.0,0.00019998,2]
[344002865,1733175035422,-500.0,0.00019998,2]
[344002866,1733175035431,-500.0,0.00019998,2]
[344002867,1733175035440,-500.0,0.00019998,2]
[344002868,1733175035450,-500.0,0.00019998,2]
[344002869,1733175035459,-500.0,0.00019998,2]
[344002870,1733175035468,-500.0,0.00019998,2]
[344002871,1733175035477,-500.0,0.00019998,2]
[344002872,1733175035487,-500.0,0.00019998,2]
[344002873,1733175035496,-500.0,0.00019998,2]
[344002874,1733175035505,-500.0,0.00019998,2]
[344002875,1733175035514,-500.0,0.00019998,2]
[344002876,1733175035524,-500.0,0.00019998,2]
[344002877,1733175035534,-500.0,0.00019998,2]
[344002878,1733175035543,-78.96241487,0.00019998,2]
[344002879,1733175035555,-421.03758513,0.00019998,2]
[344002880,1733175035564,-500.0,0.00019998,2]
[344002881,1733175035574,-500.0,0.00019998,2]
[344002882,1733175035587,-500.0,0.00019998,2]
[344002883,1733175035596,-500.0,0.00019998,2]
[344002884,1733175035605,-500.0,0.00019998,2]
[344002885,1733175035614,-500.0,0.00019998,2]
[344002886,1733175035623,-500.0,0.00019998,2]
[344002887,1733175035632,-500.0,0.00019998,2]
[344002888,1733175035642,-500.0,0.00019998,2]
[344002889,1733175035651,-461.94128898,0.00019998,2]
[344002890,1733175035662,-38.05871102,0.00019998,2]
[344002891,1733175035672,-868.80326167,0.00019998,2]
[344002892,1733175035682,-500.0,0.00019998,2]
[344002893,1733175035691,-500.0,0.00019998,2]
[344002894,1733175035701,-868.80326167,0.00019998,2]
[344002895,1733175035710,-500.0,0.00019998,2]
[344002896,1733175035719,-500.0,0.00019998,2]
[344002897,1733175035729,-500.0,0.00019998,2]
[344002898,1733175035737,-868.80326167,0.00019998,2]
[344002899,1733175035746,-500.0,0.00019998,2]
[344002900,1733175035756,-868.80326167,0.00019998,2]
[344002901,1733175035765,-500.0,0.00019998,2]
[344002902,1733175035775,-500.0,0.00019998,2]
[344002903,1733175035786,-500.0,0.00019998,2]
[344002904,1733175035796,-868.80326167,0.00019998,2]
[344002905,1733175035806,-500.0,0.00019998,2]
[344002906,1733175035816,-500.0,0.00019998,2]
[344002907,1733175035825,-868.80326167,0.00019998,2]
[344002908,1733175035839,-500.0,0.00019998,2]
[344002909,1733175035849,-500.0,0.00019998,2]
[344002910,1733175035859,-868.80326167,0.00019998,2]
[344002911,1733175035869,-500.0,0.00019998,2]
[344002912,1733175035880,-500.0,0.00019998,2]
[344002913,1733175035891,-868.80326167,0.00019998,2]
[344002914,1733175035901,-500.0,0.00019998,2]
[344002915,1733175035911,-500.0,0.00019998,2]
[344002916,1733175035921,-868.80326167,0.00019998,2]
[344002917,1733175035931,-868.80326167,0.00019998,2]
[344002918,1733175035941,-500.0,0.00019998,2]
[344002919,1733175035951,-868.80326167,0.00019998,2]
[344002920,1733175035960,-237.2262782,0.00019998,2]
[344002921,1733175035971,-500.0,0.00019998,2]
[344002922,1733175035980,-868.80326167,0.00019998,2]
[344002923,1733175035990,-500.0,0.00019998,2]
[344002924,1733175035999,-500.0,0.00019998,2]
[344002925,1733175036009,-868.80326167,0.00019998,2]
[344002926,1733175036018,-500.0,0.00019998,2]
[344002927,1733175036028,-500.0,0.00019998,2]
[344002928,1733175036037,-500.0,0.00019998,2]
[344002929,1733175036047,-868.80326167,0.00019998,2]
[344002930,1733175036057,-500.0,0.00019998,2]
[344002931,1733175036066,-868.80326167,0.00019998,2]
[344002932,1733175036076,-868.80326167,0.00019998,2]
[344002933,1733175036089,-500.0,0.00019998,2]
[344002934,1733175036099,-868.80326167,0.00019998,2]
[344002935,1733175036109,-500.0,0.00019998,2]
[344002936,1733175036119,-296.0473486,0.00019998,2]
[344002937,1733175036129,-868.80326167,0.00019998,2]
[344002938,1733175036138,-868.80326167,0.00019998,2]
[344002939,1733175036147,-500.0,0.00019998,2]
[344002940,1733175036156,-868.80326167,0.00019998,2]
[344002941,1733175036166,-500.0,0.00019998,2]
[344002942,1733175036175,-868.80326167,0.00019998,2]
[344002943,1733175036185,-868.80326167,0.00019998,2]
[344002944,1733175036194,-500.0,0.00019998,2]
[344002945,1733175036203,-868.80326167,0.00019998,2]
[344002946,1733175036214,-500.0,0.00019998,2]
[344002947,1733175036224,-868.80326167,0.00019998,2]
[344002948,1733175036234,-868.80326167,0.00019998,2]
[344002949,1733175036244,-868.80326167,0.00019998,2]
[344002950,1733175036254,-500.0,0.00019998,2]
[344002951,1733175036264,-868.80326167,0.00019998,2]
[344002952,1733175036274,-868.80326167,0.00019998,2]
[344002953,1733175036283,-868.80326167,0.00019998,2]
[344002954,1733175036295,-868.80326167,0.00019998,2]
[344002955,1733175036305,-868.80326167,0.00019998,2]
[344002956,1733175036315,-868.80326167,0.00019998,2]
[344002957,1733175036324,-868.80326167,0.00019998,2]
[344002958,1733175036337,-868.80326167,0.00019998,2]
[344002959,1733175036347,-868.80326167,0.00019998,2]
[344002960,1733175036356,-868.80326167,0.00019998,2]
[344002961,1733175036365,-868.80326167,0.00019998,2]
[344002962,1733175036375,-868.80326167,0.00019998,2]
[344002963,1733175036385,-868.80326167,0.00019998,2]
[344002964,1733175036395,-868.80326167,0.00019998,2]
[344002965,1733175036404,-260.03362069,0.00019998,2]
[344002968,1733175037903,-656.26578796,0.00019973,2]
[344002969,1733175037915,-67.67346919,0.00019973,2]
[344002970,1733175037925,-608.76964098,0.00019998,2]
[344002971,1733175037935,-868.80326167,0.00019998,2]
[344002972,1733175037944,-868.80326167,0.00019998,2]
[344002973,1733175037953,-868.80326167,0.00019998,2]
[344002974,1733175037962,-868.80326167,0.00019998,2]
[344002975,1733175037971,-868.80326167,0.00019998,2]
[344002976,1733175037981,-868.80326167,0.00019998,2]
[344002977,1733175037990,-868.80326167,0.00019998,2]
[344002978,1733175038000,-500.0,0.00019998,2]
[344002979,1733175038009,-500.0,0.00019998,2]
[344002980,1733175038019,-853.00683873,0.00019998,2]
[344002981,1733175038028,-500.0,0.00019998,2]
[344002982,1733175038038,-500.0,0.00019998,2]
[344002983,1733175038047,-853.00683873,0.00019998,2]
[344002984,1733175038056,-500.0,0.00019998,2]
[344002985,1733175038066,-500.0,0.00019998,2]
[344002986,1733175038075,-853.00683873,0.00019998,2]
[344002987,1733175038086,-500.0,0.00019998,2]
[344002988,1733175038096,-500.0,0.00019998,2]
[344002989,1733175038105,-853.00683873,0.00019998,2]
[344002990,1733175038114,-300.0,0.00019998,2]
[344002991,1733175038123,-400.00000002,0.00019998,2]
[344002992,1733175038132,-853.00683873,0.00019998,2]
[344002993,1733175038141,-500.0,0.00019998,2]
[344002994,1733175038150,-853.00683873,0.00019998,2]
[344002996,1733175038159,-853.00683873,0.00019998,2]
[344002998,1733175038169,-500.0,0.00019998,2]
[344002999,1733175038178,-623.88618701,0.00019998,2]
[344003004,1733175038261,-229.12065172,0.00019998,2]
[344003005,1733175038271,-853.00683873,0.00019998,2]
[344003007,1733175038280,-500.0,0.00019998,2]
[344003008,1733175038289,-853.00683873,0.00019998,2]
[344003009,1733175038298,-500.0,0.00019998,2]
[344003010,1733175038308,-853.00683873,0.00019998,2]
[344003011,1733175038318,-853.00683873,0.00019998,2]
[344003012,1733175038327,-853.00683873,0.00019998,2]
[344003013,1733175038338,-500.0,0.00019998,2]
[344003014,1733175038347,-853.00683873,0.00019998,2]
[344003015,1733175038356,-853.00683873,0.00019998,2]
[344003016,1733175038365,-500.0,0.00019998,2]
[344003017,1733175038375,-853.00683873,0.00019998,2]
[344003018,1733175038384,-853.00683873,0.00019998,2]
[344003019,1733175038393,-853.00683873,0.00019998,2]
[344003020,1733175038402,-853.00683873,0.00019998,2]
[344003021,1733175038412,-853.00683873,0.00019998,2]
[344003022,1733175038421,-853.00683873,0.00019998,2]
[344003023,1733175038430,-853.00683863,0.00019998,2]
[344003024,1733175038439,-500.0,0.00019999,2]
[344003025,1733175038448,-242.47730815,0.00019999,2]
[344003026,1733175038457,-221.19641899,0.00019999,2]
[344003027,1733175038466,-174.13753637,0.00019999,2]
[344003028,1733175038476,-593.56259966,0.00019999,2]
[344003029,1733175038485,-1169.27083333,0.0002,2]
[344003030,1733175038494,-12240.33470954,0.0002,2]
[344003031,1733175038506,-1088.94,0.0002,2]
[344003032,1733175038517,-428.08,0.0002,2]
[344003033,1733175038529,-771.24989728,0.0002,2]
[344003044,1733175039919,-147380.70661122,0.0002,2]
[344003045,1733175039933,-1370.0,0.0002,2]
[344003046,1733175039945,-53372.00981189,0.0002,2]
[344003047,1733175039958,-781.67897007,0.0002,2]
[344003048,1733175039968,-306.73908216,0.00020373,2]
[344003049,1733175039978,-500.0,0.00020373,2]
[344003050,1733175039988,-500.0,0.00020373,2]
[344003051,1733175039998,-500.0,0.00020373,2]
[344003052,1733175040007,-502.10788806,0.00020373,2]
[344003053,1733175040017,-89908.87120775,0.00020377,2]
[344003054,1733175040027,-172.019981,0.00020447,2]
[344003055,1733175040036,-420.303615,0.00020521,2]
[344003056,1733175040045,-934.43804248,0.00020521,2]
[344003057,1733175040055,-345.42923596,0.00020521,2]
[344003058,1733175040064,-1000.0,0.00020521,2]
[344003059,1733175040075,-192.0,0.00020532,2]
[344003060,1733175040084,-2864.83042436,0.00020602,2]
[344003061,1733175040097,-177.32,0.00020696,2]
[344003062,1733175040106,-211.08077635,0.00020696,2]
[344003063,1733175040116,-420.303615,0.00020712,2]
[344003064,1733175040125,-503.4663938,0.00020773,2]
[344003065,1733175040134,-500.0,0.00020773,2]
[344003066,1733175040144,-502.57895296,0.00020773,2]
[344003067,1733175040153,-159.62112299,0.00020773,2]
[344003068,1733175040164,-500.0,0.00020773,2]
[344003069,1733175040174,-151.14212539,0.00020773,2]
[344003070,1733175040184,-158.51690255,0.00020773,2]
[344003071,1733175040194,-500.95874668,0.00020773,2]
[344003072,1733175040204,-420.303615,0.00020904,2]
[344003073,1733175040213,-1000.0,0.00020921,2]
[344003074,1733175040225,-1000.0,0.00020921,2]
[344003075,1733175040234,-1000.0,0.00020921,2]
[344003076,1733175040243,-262.19306705,0.00021,2]
[344003077,1733175040253,-10292.78977069,0.00021,2]
[344003078,1733175040263,-236.29439437,0.00021,2]
[344003079,1733175040273,-6830.0,0.00021,2]
[344003080,1733175040283,-420.303615,0.00021096,2]
[344003081,1733175040292,-3190.59398667,0.00021177,2]
[344003082,1733175040302,-420.303615,0.00021288,2]
[344003083,1733175040311,-1000.0,0.00021321,2]
[344003084,1733175040320,-1068.77471679,0.00021321,2]
[344003085,1733175040330,-420.0,0.00021358,2]
[344003086,1733175040342,-420.303615,0.00021479,2]
[344003087,1733175040351,-228.42960315,0.0002152,2]
[344003088,1733175040361,-1500.0,0.00021522,2]
[344003089,1733175040370,-420.0,0.00021568,2]
[344003090,1733175040379,-420.303615,0.00021671,2]
[344003091,1733175040389,-420.303615,0.00021863,2]
[344003092,1733175040398,-1500.0,0.00021922,2]
[344003093,1733175040408,-1500.0,0.00021922,2]
[344003094,1733175040417,-502.711171,0.00021922,2]
[344003095,1733175040426,-420.303615,0.00022055,2]
[344003096,1733175040435,-266.75673652,0.00022245,2]
[344003097,1733175040445,-1366.66574807,0.00022322,2]
[344003098,1733175040454,-3190.59398667,0.0002274,2]
[344003099,1733175040463,-2000.0,0.0002282,2]
[344003100,1733175040473,-161.0,0.00023,2]
[344003101,1733175040482,-242.96107643,0.00023,2]
[344003102,1733175040491,-2864.83042436,0.0002309,2]
[344003103,1733175040501,-405.92255524,0.000232,2]
[344003104,1733175040510,-2000.0,0.0002322,2]
[344003105,1733175040519,-1400.1007628,0.0002322,2]
[344003106,1733175040529,-587.0,0.00023266,2]
[344003107,1733175040538,-160.58783683,0.00023357,2]
[344003108,1733175040548,-207.45196,0.00023562,2]
[344003109,1733175040557,-296.159273,0.00023562,2]
[344003110,1733175040567,-587.0,0.00023724,2]
[344003111,1733175040576,-265.49,0.00023899,2]
[344003112,1733175040586,-16717.40129739,0.00024,4]
[344003113,1733175040598,-508.31274508,0.00024,2]
[344003114,1733175040607,-1841.98784852,0.00024356,2]
[344003115,1733175040617,-296.159273,0.00024433,2]
[344003116,1733175040626,-155.27939184,0.00024525,2]
[344003117,1733175040636,-18791.71015492,0.000246,2]
[344003158,1733175042962,-160.28074943,0.00020373,2]
[344003159,1733175042972,-335.05120495,0.00024303,2]
[344003160,1733175042987,-2855.54278172,0.00024303,2]
[344003161,1733175042997,-7494.3535875,0.000246,2]
[344003162,1733175043009,-5739.05472298,0.000246,2]
[344003163,1733175043019,-674.3551849,0.00024756,2]
[344003164,1733175043029,-614.49975176,0.000248,2]
[344003165,1733175043038,-939.57970276,0.000249,7]
[344003166,1733175043048,-172.148,0.00024998,8]
[344003167,1733175043129,-202.0,0.00025,2]
[344003169,1733175043139,-2918.92422315,0.00025,7]
[344003171,1733175043150,-4500.90951988,0.00025,2]
[344003196,1733175046031,-500.0,0.00025,2]
[344003199,1733175260678,162.966297,0.00013973,2]
[344003200,1733175960308,162.966297,0.00013973,2]
[344003249,1733176232264,-1169.27083333,0.0002,2]
[344003251,1733176232275,-343.01431174,0.0002,2]
[344003252,1733176232285,-162.966297,0.00021209,2]
[344003253,1733176232296,-300.0,0.0002221,2]
[344003254,1733176232305,-300.0,0.0002221,2]
[344003255,1733176232315,-3891.47802257,0.00022211,2]
[344003282,1733176238103,-5631.52197743,0.00022211,2]
[344003283,1733176238113,-3890.81047257,0.00022212,2]
[344003284,1733176238233,-402.21256536,0.00022212,2]
[344003297,1733176240116,-336.17685995,0.00022212,2]
[344003339,1733176724545,162.966297,0.00013973,2]
[344003386,1733177373761,166.930028,0.00013973,2]
[344003419,1733177432450,-1640.01246462,0.0001883,2]
[344003479,1733177438389,-602.21442848,0.0001883,2]
[344003480,1733177438456,-1545.19875159,0.0001883,2]
[344003490,1733177441846,-1212.57435531,0.0001883,2]
[344003491,1733177441855,-169.895151,0.0001956,2]
[344003492,1733177441865,-0.03049369,0.00019715,2]
[344003506,1733177443417,-299.96950631,0.00019715,2]
[344003508,1733177443426,-300.0,0.00019715,2]
[344003509,1733177443436,-1609.03692863,0.00019716,2]
[344003510,1733177443521,-1649.4403632,0.00019716,2]
[344003511,1733177446348,-1735.0,0.00019716,2]
[344003525,1733178028465,190.87165,0.00013973,2]
[344003531,1733178507836,1613.67264072,0.0002,120]
[344003538,1733178555338,14000.0,0.00015,2]
[344003556,1733178632698,-229.432232,0.00018855,2]
[344003557,1733178632708,-5575.24190504,0.00018987,2]
[344003558,1733178632720,-731.71941845,0.00018987,2]
[344003559,1733178632733,-300.0,0.00019307,2]
[344003560,1733178632744,-300.0,0.00019307,2]
[344003561,1733178632755,-4471.75378685,0.00019308,2]
[344003624,1733178636324,181.328067,0.00013973,2]
[344003635,1733178638463,-286.474,0.00019308,2]
[344003655,1733178643540,-195.31907312,0.00019615,2]
[344003656,1733178643550,-5066.746676,0.00019806,2]
[344003657,1733178643567,-1548.73353665,0.0001993,2]
[344003658,1733178643576,-502.13838794,0.00019973,2]
[344003659,1733178643587,-241.8168679,0.00019973,2]
[344003660,1733178643598,-500.7194988,0.00019973,2]
[344003661,1733178643609,-1915.16125805,0.0002,2]
[344003662,1733178643619,-1169.27083333,0.0002,2]
[344003663,1733178643630,-8470.0,0.0002,2]
[344003664,1733178643640,-8466.0,0.0002,2]
[344003665,1733178643650,-8466.0,0.0002,2]
[344003666,1733178643659,-8466.0,0.0002,2]
[344003667,1733178643669,-8466.0,0.0002,2]
[344003668,1733178643679,-8466.0,0.0002,2]
[344003669,1733178643688,-151.89163046,0.0002,2]
[344003671,1733178643698,-1000.0,0.0002,2]
[344003673,1733178643707,-13566.0,0.0002,2]
[344003675,1733178643716,-525.14809505,0.00020197,2]
[344003676,1733178643725,-500.0,0.00020197,2]
[344003677,1733178643735,-500.0,0.00020197,2]
[344003678,1733178643745,-500.0,0.00020197,2]
[344003679,1733178643755,-500.0,0.00020197,2]
[344003680,1733178643764,-500.0,0.00020197,2]
[344003681,1733178643773,-500.0,0.00020197,2]
[344003682,1733178643782,-500.0,0.00020197,2]
[344003683,1733178643794,-500.0,0.00020197,2]
[344003684,1733178643804,-500.0,0.00020197,2]
[344003685,1733178643814,-500.0,0.00020197,2]
[344003686,1733178643824,-500.0,0.00020197,2]
[344003687,1733178643834,-500.0,0.00020197,2]
[344003688,1733178643845,-500.0,0.00020197,2]
[344003689,1733178643855,-500.0,0.00020197,2]
[344003691,1733178643864,-439.71761683,0.00020197,2]
[344003693,1733178643873,-500.0,0.00020197,2]
[344003695,1733178643883,-500.0,0.00020197,2]
[344003696,1733178643892,-500.0,0.00020197,2]
[344003697,1733178643901,-500.0,0.00020197,2]
[344003698,1733178643910,-500.0,0.00020197,2]
[344003699,1733178643920,-500.0,0.00020197,2]
[344003700,1733178643930,-500.0,0.00020197,2]
[344003701,1733178643939,-500.0,0.00020197,2]
[344003702,1733178644040,-426.91403091,0.00020197,2]
[344003703,1733178644050,-500.0,0.00020197,2]
[344003704,1733178644059,-500.0,0.00020197,2]
[344003705,1733178644068,-500.0,0.00020197,2]
[344003706,1733178644078,-500.0,0.00020197,2]
[344003707,1733178644088,-500.0,0.00020197,2]
[344003708,1733178644098,-345.45547447,0.00020197,2]
[344003709,1733178644107,-500.0,0.00020197,2]
[344003710,1733178644117,-500.0,0.00020197,2]
[344003711,1733178644126,-500.0,0.00020197,2]
[344003712,1733178644135,-500.0,0.00020197,2]
[344003713,1733178644145,-500.0,0.00020197,2]
[344003714,1733178644154,-500.0,0.00020197,2]
[344003715,1733178644163,-500.0,0.00020197,2]
[344003716,1733178644173,-500.0,0.00020197,2]
[344003717,1733178644182,-500.0,0.00020197,2]
[344003718,1733178644191,-500.0,0.00020197,2]
[344003719,1733178644200,-500.0,0.00020197,2]
[344003721,1733178644209,-500.0,0.00020197,2]
[344003723,1733178644219,-500.0,0.00020197,2]
[344003725,1733178644228,-500.0,0.00020197,2]
[344003726,1733178644239,-500.0,0.00020197,2]
[344003728,1733178644248,-500.0,0.00020197,2]
[344003730,1733178644258,-500.0,0.00020197,2]